Cogmind - Beta 13 @@@ ROGUE MODE // 2024.03.30 @ 20:57:34 Player: Dosh Result: Destroyed by GW-8AI(R) with Subdweller Machine Gun Performance ------------- Evolutions (0) 0 Regions Visited (2) 400 Robots Destroyed (36) 180 Value Destroyed (1025) 1025 Prototype IDs (2) 40 Alien Tech Used (0) 0 Bonus (-221) -221 TOTAL SCORE: 1424 Bonus ------- Follower Combat Kills 30 Friendly Fire -251 Cogmind --------- Core Integrity 0/250 Matter 298/300 Energy 99/100 System Corruption 2% Temperature Cool (0) Movement Rolling (100) Location -10/Subcaves Parts ------- > --- POWER (1) -------- (None) > --- PROPULSION (2) --- Compact Wheel > --- UTILITY (2) ------ Makeshift Light Armor Plating V3-11A's Pendant > --- WEAPON (2) ------- Subdweller Machine Gun Ripper > --- INVENTORY (5) ---- Makeshift Power Source Light Assault Rifle Subdweller Machine Gun Rocket Launcher Rocket Launcher Peak State ------------ > --- POWER ------------ Ion Engine > --- PROPULSION ------- Light Treads Spiked Treads > --- UTILITY ---------- Makeshift Light Armor Plating Makeshift Thermal Plating > --- WEAPON ----------- Battle Rifle Rocket Launcher > --- INVENTORY -------- Makeshift Power Source Compact Wheel Light Assault Rifle Subdweller Machine Gun Rocket Launcher [Rating: 17] Favorites ----------- Power Ion Engine Engine Ion Engine Propulsion Light Treads Treads Light Treads Wheel Compact Wheel Utility Scrap Shield Device V3-11A's Pendant Storage High-capacity Storage Unit Protection Scrap Shield Weapon Heavy Assault Rifle Energy Gun Improved Medium Laser Energy Cannon Subdweller Beam Cannon Ballistic Gun Heavy Assault Rifle Launcher Rocket Launcher Slashing Weapon Ripper Build | -11 -10 -10 ------- Run | Yrd Mat Sub Slots Evolved . | . . . Power . | . . . Propulsion . | . . . Utility . | . . . Weapon . | . . . Parts Attached 34 | 6 9 19 Power 2 | 1 . 1 Engine 2 | 1 . 1 Core . | . . . Reactor . | . . . Propulsion 4 | 2 . 2 Treads 3 | 2 . 1 Leg . | . . . Wheel 1 | . . 1 Hover . | . . . Flight . | . . . Utility 7 | 1 2 4 Device 2 | . 1 1 Storage 2 | 1 1 . Processor . | . . . Hackware . | . . . Protection 3 | . . 3 Artifact . | . . . Weapon 21 | 2 7 12 Energy Gun 1 | . 1 . Energy Cannon 1 | . . 1 Ballistic Gun 13 | 2 4 7 Ballistic Cannon . | . . . Launcher 5 | . 2 3 Special Weapon . | . . . Impact Weapon . | . . . Slashing Weapon 1 | . . 1 Piercing Weapon . | . . . Special Melee Weapon . | . . . Unidentified Prototypes 2 | . 1 1 Parts Lost 6 | . 1 5 Power 1 | . . 1 Propulsion 2 | . . 2 Utility 3 | . 1 2 Weapon . | . . . Highest Loss Streak 3 | . 1 3 To Critical Strikes . | . . . Average Slot Usage (%) 82 | . 86 81 Engine 11 | . 14 10 Treads 23 | . 28 21 Wheel 2 | . . 2 Device 1 | . 2 1 Storage 3 | . 14 . Protection 11 | . . 15 Energy Cannon 1 | . . 1 Ballistic Gun 18 | . 27 14 Launcher 7 | . . 9 Slashing Weapon 1 | . . 1 Naked Turns . | . . . Heaviest Build 51 | 13 51 51 Greatest Support 40 | 40 40 40 Greatest Overweight (x) 2 | . 1 2 Average Overweight (x) . | . . . Largest Inventory Capacity 20 | 8 20 20 Average Capacity 7 | 6 14 5 Most Carried 9 | 3 9 7 Average Carried 5 | 1 7 4 Final Capacity 20 | 8 20 5 Final Carried 7 | 3 7 5 Class Distribution -------------------- 91% | Mutant 8% | Derelict-Mutant Dominant Class ---------------- Mutant | -10/Materials Mutant | -10/Subcaves Resources | -11 -10 -10 ----------- Run | Yrd Mat Sub Matter Collected 1240 | 180 251 809 Remotely . | . . . Salvage Created 880 | . 283 597 Parts 74 | . 34 40 Haulers Intercepted . | . . . Recyclers Shooed 1 | . 1 . Parts Field Recycled . | . . . Retrieved Matter . | . . . Parts Self-Destructed 18 | . . 18 Prevented . | . . . Kills | -11 -10 -10 ------- Run | Yrd Mat Sub Combat Hostiles Destroyed 30 | . 11 19 Guns 14 | . 6 8 Cannons 2 | . . 2 AOE 14 | . 5 9 Classes Destroyed 8 | . 5 3 Worker 1 | . 1 . Builder 1 | . 1 . Turret 2 | . . 2 Watcher 1 | . 1 . Swarmer 8 | . 6 2 Grunt 5 | . 5 . Subdweller 17 | . . 17 Guerrilla 1 | . . 1 Best Kill Streak 7 | . 7 5 Combat Bots Only 6 | . 6 5 Max Kills in Single Turn 4 | . 4 2 Gunslinging . | . . . Exploded 3 | . 3 2 Melee . | . . . Uniques/NPCs Destroyed . | . . . Combat | -11 -10 -10 -------- Run | Yrd Mat Sub Hostile Shots Fired 138 | . 39 99 Missed 39 | . 11 28 Damage Taken 1859 | . 363 1496 Core 259 | . 43 216 Absorbed by Shields 53 | . 53 . Ignored by Resistances 62 | . . 62 Core Remaining (%) 100 | 100 . . Volleys Fired 87 | . 21 66 Largest 2 | . 2 2 Hottest 113 | . 46 113 Shots Fired 140 | . 38 102 Gun 96 | . 34 62 Cannon 6 | . . 6 Launcher 38 | . 4 34 Special . | . . . Kinetic 96 | . 34 62 Thermal 6 | . . 6 Explosive 38 | . 4 34 Electromagnetic . | . . . Robot Hit Streak 9 | . 3 9 Robot Miss Streak 7 | . 7 3 Penetration Max . | . . . Secondary Targets . | . . . Shots Hit Robots 69 | . 15 54 Core Hits 59 | . 19 40 Critical Kills 1 | . . 1 Critical Parts Destroyed . | . . . Critical Strikes 1 | . . 1 Destroy 1 | . . 1 Melee Attacks 6 | . . 6 Impact . | . . . Slashing 6 | . . 6 Piercing . | . . . Sneak Attacks . | . . . Combat Hostiles . | . . . Follow-up Attacks . | . . . Damage Inflicted 2936 | . 578 2358 Guns 861 | . 253 608 Cannons 113 | . . 113 Explosions 1956 | . 319 1637 Melee . | . . . Ramming 6 | . 6 . Kinetic 861 | . 253 608 Thermal 113 | . . 113 Explosive 1956 | . 319 1637 Electromagnetic . | . . . Impact . | . . . Slashing . | . . . Piercing . | . . . Highest Corruption 2 | . 2 2 Average Corruption 2 | . 2 2 Corruption Purged . | . . . Corruption Blocked . | . . . Effects 41 | . 4 37 Message Errors 10 | . 2 8 Matter Fused 11 | . 1 10 Heat Flow Errors 2 | . . 2 Energy Discharges 6 | . 1 5 Data Loss (minor) 4 | . . 4 Data Loss (major) 2 | . . 2 Misfires 4 | . . 4 Alerts 1 | . . 1 Weapon Failures 1 | . . 1 Overload Shots . | . . . Overflow Damage 51 | . 10 41 Projectiles . | . . . Explosions 51 | . 10 41 Melee . | . . . Knockbacks . | . . . Impact . | . . . Kinetic . | . . . Secondary . | . . . Self-Inflicted Damage 177 | . 27 150 Shots 8 | . 1 7 Rammed 2 | . 2 . Targets Rammed 2 | . 2 . Kicked . | . . . Crushed . | . . . Highest Temperature 135 | . 4 135 Average Temperature 32 | . 2 35 Received Heat Transfer 414 | . 45 369 Siege Activations . | . . . Robots Corrupted . | . . . Combat Hostiles . | . . . Parts Fried . | . . . Impact Corruptions . | . . . Robots Melted . | . . . Combat Hostiles . | . . . Parts Melted 1 | . . 1 Heat Transferred 148 | . . 148 Parts Sabotaged . | . . . Parts Stolen . | . . . Parts Stripped . | . . . Power Chain Reactions . | . . . Alert | -11 -10 -10 ------- Run | Yrd Mat Sub Peak Influence 238 | . 238 . Initial . | . . . Average 63 | . 69 . Maximum Alert Level 1 | . 1 . Low Security (%) 90 | 100 89 . Level 1 9 | . 10 . Level 2 . | . . . Level 3 . | . . . Level 4 . | . . . Level 5 . | . . . High Security . | . . . Max Security . | . . . Squads Dispatched 1 | . 1 . Investigation 1 | . 1 . Extermination . | . . . Reinforcement . | . . . Assault . | . . . Garrison . | . . . Intercept . | . . . Searches Triggered . | . . . Construction Impeded . | . . . Haulers Reinforced . | . . . Active Scanning Responses . | . . . Cargo Convoy Interrupts . | . . . Stealth | -11 -10 -10 --------- Run | Yrd Mat Sub Distress Signals . | . . . Communications Jammed . | . . . Distress Signals . | . . . Times Spotted 56 | . 12 44 Peak Tracking Total 6 | . 5 6 Tactical Retreats 2 | . 1 1 Traps | -11 -10 -10 ------- Run | Yrd Mat Sub Traps Triggered 2 | . 1 1 Indirectly . | . . . Trap Hack Attempts . | . . . Triggered . | . . . Disarmed . | . . . Reprogrammed . | . . . Reused . | . . . Traps Extracted . | . . . Installed . | . . . Triggered . | . . . Machines | -11 -10 -10 ---------- Run | Yrd Mat Sub Machines Disabled 3 | . . 3 Max in Single Turn 1 | . . 1 Machines Repaired . | . . . Machines Dismantled . | . . . Machines Sabotaged . | . . . Overloaded Fab Kills . | . . . Hacking | -11 -10 -10 --------- Run | Yrd Mat Sub Machines Accessed 4 | . 3 1 Terminals 3 | . 3 . Fabricators . | . . . Repair Stations . | . . . Recycling Units . | . . . Scanalyzers . | . . . Garrison Access . | . . . Total Hacks 17 | . 14 3 Successful 11 | . 8 3 Failed 6 | . 6 . Catastrophic 2 | . 2 . Database Lockouts . | . . . Manual 6 | . 6 . Terminals 14 | . 14 . Fabricators . | . . . Repair Stations . | . . . Recycling Units . | . . . Scanalyzers . | . . . Garrison Access . | . . . Terminal Hacks 8 | . 5 3 Record 8 | . 5 3 Fabricator Hacks . | . . . Repair Station Hacks . | . . . Recycling Unit Hacks . | . . . Scanalyzer . | . . . Garrison Access Hacks . | . . . Unauthorized Hacks 3 | . 3 . Terminals 3 | . 3 . Botnet 2 | . 2 . Operators 1 | . 1 . Fabricators . | . . . Repair Stations . | . . . Recycling Units . | . . . Scanalyzers . | . . . Garrison Access . | . . . Data Cores Recovered . | . . . Used . | . . . Hacking Detections 3 | . 3 . Full Trace Events 2 | . 2 . Feedback Events . | . . . Feedback Blocked . | . . . Robot Schematics Acquired . | . . . Robots Built . | . . . Authchips . | . . . Time . | . . . Total Robot Build Rating . | . . . Part Schematics Acquired . | . . . Parts Built . | . . . Authchips . | . . . Time . | . . . Total Part Build Rating . | . . . Parts Repaired . | . . . Time . | . . . Parts Recycled . | . . . Recycled Matter . | . . . Retrieved Matter . | . . . Retrieved Components . | . . . Parts Scanalyzed . | . . . Part Schematics Acquired . | . . . Parts Damaged . | . . . Bothacking | -11 -10 -10 ------------ Run | Yrd Mat Sub Used RIF Installer . | . . . Robots Hacked . | . . . Non-combat . | . . . Combat . | . . . Robot Hacks Applied . | . . . Relay Couplers Released . | . . . Fabnet Peak Effective % . | . . . Robots Rewired . | . . . Allies Hacked . | . . . Hacks Repelled . | . . . Allies | -11 -10 -10 -------- Run | Yrd Mat Sub Total Allies 1 | . . 1 Largest Group 1 | . . 1 Highest-Rated Group 19 | . . 19 Highest-Rated Ally 19 | . . 19 Total Orders . | . . . Ally Attacks 2 | . . 2 Total Damage 30 | . . 30 Kills 1 | . . 1 Allies Corrupted . | . . . Allies Melted . | . . . Intel | -11 -10 -10 ------- Run | Yrd Mat Sub Robot Analysis Total . | . . . Derelict Logs Recovered 3 | . . 3 Drone Launches . | . . . Drone Recoveries . | . . . Exploration | -11 -10 -10 ------------- Run | Yrd Mat Sub Turns Passed 3444 | 77 903 2464 Spaces Moved 1981 | 43 385 1553 Core 3 | 2 . 1 Treads 1491 | 41 385 1065 Legs . | . . . Wheels 487 | . . 487 Hover . | . . . Flight . | . . . Fastest Speed 50 | 50 160 100 Average Speed 152 | 154 198 141 Slowest Speed 240 | 160 240 240 Overloaded Moves . | . . . Propulsion Burnouts . | . . . Robots Hopped . | . . . Cave-ins Triggered . | . . . Exploration Rate (%) 47 | 4 68 71 Regions Visited 2 Branch Regions 1 Pre-discovered Areas 1 | . . 1 Known Exits Taken . | . . . Unknown Exits Taken 2 | 1 1 . Scrap Searched 15 | . . 15 Spaces Dug 36 | . . 36 Terrain Destroyed 230 | . 22 208 Melee . | . . . Projectile 1 | . . 1 AOE 229 | . 22 207 Terrain Rammed . | . . . Walls Destroyed . | . . . Machines Disabled . | . . . Actions | -11 -10 -10 --------- Run | Yrd Mat Sub Total 2248 | 51 482 1715 Wait 109 | . 57 52 Move 1979 | 42 384 1553 Hop . | . . . Pick Up 11 | 3 5 3 Fast Attach 14 | 6 3 5 Attach 2 | . . 2 Detach 1 | . 1 . Swap 18 | . 6 12 Drop 11 | . 3 8 Fire 87 | . 21 66 Melee 6 | . . 6 Ram . | . . . Kick . | . . . Crush 2 | . 2 . Escape Stasis . | . . . Rewire . | . . . Trap . | . . . Miscellaneous 8 | . . 8 Route ------- -11/Scrapyard -10/Materials (discovered 3 exits: [*Mat x2] / *Sub) -10/Subcaves (discovered 3 exits: [*Mat x2] / [*Rec]) History --------- Turn | Location | Event 44 | -11/Scrapyard | Discovered new exit (range 15) 78 | -11/Scrapyard | Entered Materials 267 | -10/Materials | Discovered new exit (range 9) 305 | -10/Materials | Build established: Mutant 372 | -10/Materials | Discovered new exit (range 16) 967 | -10/Materials | Discovered new exit (range 7) 981 | -10/Materials | Entered Subcaves 1062 | -10/Subcaves | A swath of the cavern ceiling suddenly collapsed 1124 | -10/Subcaves | Learned location of Zion (-7) 1124 | -10/Subcaves | Met a Zionite searching for "candidates" 1238 | -10/Subcaves | Discovered new exit (range 5) 1439 | -10/Subcaves | Ambushed by Subdwellers from Twisted Machinery 1525 | -10/Subcaves | A swath of the cavern ceiling suddenly collapsed 1596 | -10/Subcaves | Learned Materials garrison access intel 1743 | -10/Subcaves | Ambushed by Subdweller buried in earth 1747 | -10/Subcaves | Discovered new exit (range 14) 2048 | -10/Subcaves | Discovered new exit (range 10) 2062 | -10/Subcaves | A Subdweller sparked back to life 2062 | -10/Subcaves | A Subdweller sparked back to life 2601 | -10/Subcaves | Learned 2 Materials zone layouts 2609 | -10/Subcaves | Core integrity fell below 50% 2609 | -10/Subcaves | Ambushed by Subdweller buried in earth 2788 | -10/Subcaves | Ambushed by Subdweller buried in earth 2788 | -10/Subcaves | Ambushed by Subdweller buried in earth 2855 | -10/Subcaves | Learned Materials stockpile data 2917 | -10/Subcaves | Core integrity fell below 20% 2949 | -10/Subcaves | Lost 3 parts (1p1n1u) 3196 | -10/Subcaves | Visited triangular shrine 3202 | -10/Subcaves | Found Prototype Device 3202 | -10/Subcaves | Identified V3-11A's Pendant 3207 | -10/Subcaves | Befriended Subdweller 3427 | -10/Subcaves | Visited Clippyterm 3445 | -10/Subcaves | Destroyed by GW-8AI(R) with Subdweller Machine Gun Last Messages --------------- 03361_ System corrupted: Substantial component data lost. 03409_ System corrupted: FCS attempts to trigger Sub. Machine Gun. 03409_ System corrupted: Sub. Machine Gun misfires. 03422_ A thin wall crumbles away, revealing a door. 03427_ The door opens automatically. 03430_ Connecting with Clippyterm... 03430_ Current location identified: Subcaves >>Record "Clippyterm" Welcome to Clippyterm v0.53, my misguided attempt to resurrect an ancient AI. I give up. There must be something fundamentally wrong with the algorithm, because no matter how much data I collect to feed it, half the time it still manages to suggest unhelpful sample queries and responses. --DD-NU8 >>Record! "Tab" It looks like you're biased against spaces, I think you need more help than I can offer. >>Record! "LU-1G1" It looks like you're researching the legendary digger of dangerously deep tunnels, unfortunately it seems not even members of the Boring Crew know what became of that one. Map ----- +----------------------------------------------------+ | ?????????????????????????????????????????????????? | | ?????????????????????????????????????????????????? | | ?????????????????????????????????????????????????? | | ?????????????????????????????????????????????????? | | ?????????????????????????????????????????????????? | | ?????????????????????????????????????????????????? | | ?????????????????????????????????????????????????? | | ?????????????????????????????????????????????????? | | ???????????#######???????????????????????????????? | | ???????????#"""""#???????????????????????????????? | | ???????????#""X""#????????????? ???????????????? | | ???????????#" "#???????????? ??????????????? | | ????????###### ###?#####?????? #?????????????? | | ????????# ## ##?## ##???? #?????????????? | | ????????# ### ##??# #?????????????? | | ????????## # ### #?????????????? | | ?????????## #???????????????? | | ??????????## #????????????????? | | ???????????# # #????????????????? | | ????######## #### ##????????????????????? | | ???## #### R ##?????????????????????? | | ??## ### ##??????????????????????? | | ?## ## # #????????? ##?????????? | | ## # # #????? #?????????? | | ### ## ## ## #????????? | | ##?##### @ R #????????? | | ##?????# R #????????????? | | ## #??????###### #### ##????????????? | | ## #???????????######??????#?????????????? | | ### ## #????????????????????????????????????? | | #####?#### ##????????????????????????????????????? | | ?????????###?????????????????????????????????????? | | ?????????????????????????????????????????????????? | | ?????????????????????????????????????????????????? | | ?????????????????????????????????????????????????? | | ?????????????????????????????????????????????????? | | ?????????????????????????????????????????????????? | | ?????????????????????????????????????????????????? | | ?????????????????????????????????????????????????? | | ?????????????????????????????????????????????????? | | ?????????????????????????????????????????????????? | | ?????????????????????????????????????????????????? | | ?????????????????????????????????????????????????? | | ?????????????????????????????????????????????????? | | ?????????????????????????????????????????????????? | | ?????????????????????????????????????????????????? | | | | | | | | | +----------------------------------------------------+ Best States ------------- Heat Dissipation 25 Energy Generation 10 Energy Capacity 250 Matter Stores 300 Matter Capacity 300 Sight Range 16 Terrain Scan Density 10 Armor Coverage 800 Resistance: TH 10 Evasion (%) 40 Recoil Reduction 2 Item Schematics ----------------- None Robot Schematics ------------------ None Fabricated ------------ Nothing Alien Tech Used ----------------- None Achievements -------------- None Challenges ------------ None Game ------ Seed FrostReinforcedBrace Manual? 0 Play Time 00:19:06 Cumulative 304.6 hours Start 2024.03.28 @ 16:39:09 End 2024.03.30 @ 20:57:34 Sessions 7 Manual Loads 0 Difficulty Rogue Special Mode None Game No. 209 Rogue 209 Adventurer 0 Explorer 0 Win Type - Total 14 Types 9/1/1/1/1/0/0/1/0 Lore% 73 Gallery% 83 Achievement% 72 Wizard Run 0 Options --------- Layout 0 ASCII 0 Keyboard 1 Movement Numpad Keybinds 0 Fullscreen 2 Font 18/SmallcapsGlow Map View 76x50 Zoom Use 0% Tactical HUD 1 Map Filters NONE Filters NONE Steam 1 RUN: 7da6b2f4-221e-40a9-935e-35fe00db1396